fUSD/lending_fUSD_20250124
["ID","MTS","AMOUNT","RATE_DAILY","PERIOD"]
[350272168,1737755437147,-500.0,0.00019537,2]
[350272169,1737755437156,-500.0,0.00019537,2]
[350272170,1737755437165,-1880.78,0.00019537,2]
[350272171,1737755437175,-500.0,0.00019537,2]
[350272172,1737755437184,-500.0,0.00019538,2]
[350272173,1737755437194,-500.0,0.00019538,2]
[350272174,1737755437203,-500.0,0.00019538,2]
[350272175,1737755437212,-500.0,0.00019538,2]
[350272176,1737755437222,-500.0,0.00019538,2]
[350272177,1737755437231,-500.0,0.00019538,2]
[350272178,1737755437240,-500.0,0.00019538,2]
[350272179,1737755437249,-519.26311484,0.00019538,2]
[350272180,1737755437258,-500.0,0.00019538,2]
[350272181,1737755437266,-500.0,0.00019538,2]
[350272182,1737755437274,-500.0,0.00019538,2]
[350272183,1737755437284,-500.0,0.00019538,2]
[350272184,1737755437293,-500.0,0.00019538,2]
[350272185,1737755437302,-500.0,0.00019538,2]
[350272186,1737755437312,-500.0,0.00019538,2]
[350272187,1737755437322,-500.0,0.00019538,2]
[350272188,1737755437335,-168.36,0.00019538,2]
[350272189,1737755437344,-500.0,0.00019538,2]
[350272190,1737755437354,-500.0,0.00019538,2]
[350272191,1737755437363,-500.0,0.00019538,2]
[350272192,1737755437372,-500.0,0.00019538,2]
[350272193,1737755437383,-527.8,0.00019538,2]
[350272194,1737755437392,-520.8,0.00019538,2]
[350272195,1737755437402,-500.0,0.00019538,2]
[350272196,1737755437411,-195.88,0.00019538,2]
[350272197,1737755437420,-500.0,0.00019538,2]
[350272198,1737755437430,-500.0,0.00019538,2]
[350272199,1737755437440,-500.0,0.00019538,2]
[350272200,1737755437449,-500.0,0.00019538,2]
[350272201,1737755437459,-548.78,0.00019538,2]
[350272202,1737755437469,-500.0,0.00019538,2]
[350272203,1737755437478,-500.0,0.00019538,2]
[350272204,1737755437488,-500.0,0.00019538,2]
[350272205,1737755437498,-914.13,0.00019538,2]
[350272206,1737755437507,-500.0,0.00019538,2]
[350272207,1737755437516,-500.0,0.00019538,2]
[350272208,1737755437526,-484.759834,0.00019538,2]
[350272209,1737755437536,-500.0,0.00019538,2]
[350272210,1737755437545,-680.97,0.00019538,2]
[350272211,1737755437555,-500.0,0.00019538,2]
[350272212,1737755437564,-500.0,0.00019538,2]
[350272213,1737755437574,-500.0,0.00019538,2]
[350272214,1737755437583,-1244.67,0.00019538,2]
[350272215,1737755437593,-500.0,0.00019538,2]
[350272216,1737755437603,-500.0,0.00019538,2]
[350272217,1737755437612,-567.350589,0.00019538,2]
[350272218,1737755437622,-550.74,0.00019538,2]
[350272219,1737755437632,-500.0,0.00019538,2]
[350272220,1737755437643,-500.0,0.00019538,2]
[350272221,1737755437653,-500.0,0.00019538,2]
[350272222,1737755437663,-500.0,0.00019538,2]
[350272223,1737755437672,-500.0,0.00019538,2]
[350272224,1737755437682,-500.0,0.00019538,2]
[350272225,1737755437692,-500.0,0.00019538,2]
[350272226,1737755437702,-500.0,0.00019538,2]
[350272227,1737755437712,-843.54,0.00019538,2]
[350272228,1737755437722,-1139.52,0.00019538,2]
[350272229,1737755437732,-875.32,0.00019538,2]
[350272231,1737755437858,-1099.87,0.00019538,2]
[350272232,1737755437883,-500.0,0.00019538,2]
[350272233,1737755437893,-723.71,0.00019538,2]
[350272234,1737755437903,-500.0,0.00019538,2]
[350272235,1737755437913,-527.13,0.00019538,2]
[350272236,1737755437923,-500.0,0.00019538,2]
[350272237,1737755437933,-500.0,0.00019538,2]
[350272238,1737755437943,-1339.65,0.00019538,2]
[350272239,1737755437954,-500.0,0.00019538,2]
[350272240,1737755437963,-500.0,0.00019538,2]
[350272241,1737755437973,-1746.49,0.00019538,2]
[350272242,1737755437983,-500.0,0.00019538,2]
[350272243,1737755437993,-1842.37,0.00019538,2]
[350272244,1737755438002,-500.0,0.00019538,2]
[350272245,1737755438012,-500.0,0.00019538,2]
[350272246,1737755438022,-500.0,0.00019538,2]
[350272247,1737755438032,-500.0,0.00019538,2]
[350272248,1737755438046,-589.99,0.00019538,2]
[350272249,1737755438056,-500.0,0.00019538,2]
[350272250,1737755438069,-500.0,0.00019538,2]
[350272251,1737755438079,-500.0,0.00019538,2]
[350272252,1737755438088,-500.0,0.00019538,2]
[350272253,1737755438098,-500.0,0.00019538,2]
[350272254,1737755438108,-500.0,0.00019538,2]
[350272255,1737755438117,-500.0,0.00019538,2]
[350272256,1737755438127,-1752.39,0.00019538,2]
[350272257,1737755438137,-500.0,0.00019538,2]
[350272258,1737755438146,-500.0,0.00019538,2]
[350272259,1737755438156,-500.0,0.00019538,2]
[350272260,1737755438166,-500.0,0.00019538,2]
[350272261,1737755438175,-500.0,0.00019538,2]
[350272262,1737755438185,-500.0,0.00019538,2]
[350272263,1737755438195,-500.0,0.00019538,2]
[350272264,1737755438204,-500.0,0.00019538,2]
[350272265,1737755438213,-868.94,0.00019538,2]
[350272266,1737755438223,-500.0,0.00019538,2]
[350272267,1737755438232,-500.0,0.00019538,2]
[350272268,1737755438241,-984.18,0.00019538,2]
[350272269,1737755438250,-500.0,0.00019538,2]
[350272270,1737755438260,-500.0,0.00019538,2]
[350272271,1737755438269,-500.0,0.00019538,2]
[350272272,1737755438279,-500.0,0.00019538,2]
[350272273,1737755438288,-500.0,0.00019538,2]
[350272274,1737755438298,-500.0,0.00019538,2]
[350272275,1737755438307,-500.0,0.00019538,2]
[350272276,1737755438316,-500.0,0.00019538,2]
[350272277,1737755438326,-500.0,0.00019538,2]
[350272278,1737755438339,-500.0,0.00019538,2]
[350272279,1737755438349,-199.95,0.00019538,2]
[350272280,1737755438358,-502.48,0.00019538,2]
[350272281,1737755438367,-500.0,0.00019538,2]
[350272282,1737755438379,-500.0,0.00019538,2]
[350272283,1737755438388,-500.0,0.00019538,2]
[350272284,1737755438398,-500.0,0.00019538,2]
[350272285,1737755438409,-595.14,0.00019538,2]
[350272286,1737755438419,-785.15,0.00019538,2]
[350272287,1737755438428,-692.15,0.00019538,2]
[350272288,1737755438437,-500.0,0.00019538,2]
[350272289,1737755438447,-500.0,0.00019538,2]
[350272290,1737755438457,-1199.31,0.00019538,2]
[350272291,1737755438466,-500.0,0.00019538,2]
[350272292,1737755438476,-261.55,0.00019539,2]
[350272293,1737755438487,-500.0,0.00019539,2]
[350272294,1737755438497,-500.0,0.00019539,2]
[350272295,1737755438507,-500.0,0.00019539,2]
[350272296,1737755438517,-286.04205691,0.00019556,2]
[350272297,1737755438527,-3566.385,0.00019576,2]
[350272298,1737755438536,-827.20064561,0.00019624,2]
[350272299,1737755438545,-500.0,0.00019674,2]
[350272300,1737755438555,-1003.68,0.00019674,2]
[350272301,1737755438564,-500.0,0.00019674,2]
[350272302,1737755438574,-500.0,0.00019674,2]
[350272303,1737755438583,-500.0,0.00019674,2]
[350272304,1737755438593,-1143.72,0.00019674,2]
[350272305,1737755438603,-647.35,0.00019674,2]
[350272306,1737755438612,-720.8,0.00019674,2]
[350272307,1737755438622,-581.73,0.00019674,2]
[350272308,1737755438632,-500.0,0.00019674,2]
[350272309,1737755438641,-500.0,0.00019674,2]
[350272310,1737755438651,-1166.28,0.00019674,2]
[350272311,1737755438666,-500.0,0.00019674,2]
[350272312,1737755438676,-500.0,0.00019674,2]
[350272313,1737755438686,-500.0,0.00019674,2]
[350272314,1737755438695,-500.0,0.00019674,2]
[350272315,1737755438705,-1548.55,0.00019674,2]
[350272316,1737755438715,-500.0,0.00019674,2]
[350272317,1737755438724,-500.0,0.00019674,2]
[350272318,1737755438735,-500.0,0.00019674,2]
[350272319,1737755438744,-500.0,0.00019674,2]
[350272320,1737755438754,-500.0,0.00019674,2]
[350272321,1737755438763,-1880.78,0.00019674,2]
[350272322,1737755438773,-500.0,0.00019674,2]
[350272323,1737755438782,-500.0,0.00019675,2]
[350272324,1737755438792,-500.0,0.00019675,2]
[350272325,1737755438801,-500.0,0.00019675,2]
[350272326,1737755438810,-500.0,0.00019675,2]
[350272327,1737755438820,-500.0,0.00019675,2]
[350272328,1737755438830,-500.0,0.00019675,2]
[350272329,1737755438839,-500.0,0.00019675,2]
[350272330,1737755438849,-500.0,0.00019675,2]
[350272331,1737755438859,-500.0,0.00019675,2]
[350272332,1737755438868,-500.0,0.00019675,2]
[350272333,1737755438879,-500.0,0.00019675,2]
[350272334,1737755438888,-500.0,0.00019675,2]
[350272335,1737755438898,-914.13,0.00019675,2]
[350272336,1737755438908,-500.0,0.00019675,2]
[350272337,1737755438918,-484.759834,0.00019675,2]
[350272338,1737755438927,-680.97,0.00019675,2]
[350272339,1737755438937,-500.0,0.00019675,2]
[350272340,1737755438947,-500.0,0.00019675,2]
[350272341,1737755438956,-1244.67,0.00019675,2]
[350272342,1737755438965,-305.19,0.00019675,2]
[350272343,1737755438975,-597.16,0.00019675,2]
[350272344,1737755438985,-500.0,0.00019675,2]
[350272345,1737755438995,-567.350589,0.00019675,2]
[350272346,1737755439004,-550.74,0.00019675,2]
[350272347,1737755439014,-500.0,0.00019675,2]
[350272348,1737755439024,-500.0,0.00019675,2]
[350272349,1737755439033,-500.0,0.00019675,2]
[350272350,1737755439042,-500.0,0.00019675,2]
[350272351,1737755439052,-500.0,0.00019675,2]
[350272352,1737755439061,-500.0,0.00019675,2]
[350272353,1737755439071,-500.0,0.00019675,2]
[350272354,1737755439081,-500.0,0.00019675,2]
[350272355,1737755439090,-500.0,0.00019675,2]
[350272356,1737755439100,-500.0,0.00019675,2]
[350272357,1737755439110,-500.0,0.00019675,2]
[350272358,1737755439120,-500.0,0.00019675,2]
[350272359,1737755439129,-500.0,0.00019675,2]
[350272360,1737755439139,-843.54,0.00019675,2]
[350272361,1737755439148,-1139.52,0.00019675,2]
[350272362,1737755439157,-1000.0,0.00019675,2]
[350272363,1737755439166,-500.0,0.00019675,2]
[350272364,1737755439175,-875.32,0.00019675,2]
[350272365,1737755439184,-1099.87,0.00019675,2]
[350272366,1737755439193,-500.0,0.00019675,2]
[350272367,1737755439203,-500.0,0.00019675,2]
[350272368,1737755439213,-706.81,0.00019675,2]
[350272369,1737755439223,-723.71,0.00019675,2]
[350272370,1737755439232,-527.13,0.00019675,2]
[350272371,1737755439242,-1339.65,0.00019675,2]
[350272372,1737755439252,-1746.49,0.00019675,2]
[350272373,1737755439262,-597.51,0.00019675,2]
[350272374,1737755439272,-500.0,0.00019675,2]
[350272375,1737755439283,-1842.37,0.00019675,2]
[350272376,1737755439292,-500.0,0.00019675,2]
[350272377,1737755439302,-500.0,0.00019675,2]
[350272378,1737755439311,-589.99,0.00019675,2]
[350272379,1737755439321,-500.0,0.00019675,2]
[350272380,1737755439334,-500.0,0.00019675,2]
[350272381,1737755439343,-1752.39,0.00019675,2]
[350272382,1737755439353,-500.0,0.00019675,2]
[350272383,1737755439363,-500.0,0.00019675,2]
[350272384,1737755439372,-500.0,0.00019675,2]
[350272385,1737755439384,-868.94,0.00019675,2]
[350272386,1737755439397,-984.18,0.00019675,2]
[350272387,1737755439411,-500.0,0.00019675,2]
[350272388,1737755439424,-500.0,0.00019675,2]
[350272389,1737755439436,-500.0,0.00019675,2]
[350272390,1737755439447,-500.0,0.00019675,2]
[350272391,1737755439457,-500.0,0.00019675,2]
[350272392,1737755439471,-785.15,0.00019675,2]
[350272393,1737755439483,-692.15,0.00019675,2]
[350272394,1737755439495,-500.0,0.00019675,2]
[350272395,1737755439508,-1199.31,0.00019675,2]
[350272396,1737755439519,-500.0,0.00019676,2]
[350272397,1737755439531,-6230.24056604,0.00019701,2]
[350272398,1737755439543,-369.84930889,0.0001971,2]
[350272399,1737755439555,-827.20064561,0.00019728,2]
[350272400,1737755439567,-150.0,0.00019742,2]
[350272401,1737755439579,-200.0,0.00019745,2]
[350272402,1737755439590,-150.0,0.00019745,2]
[350272403,1737755439600,-11193.54427107,0.00019749,2]
[350272404,1737755439611,-150.0,0.00019753,2]
[350272405,1737755439624,-200.0,0.00019779,2]
[350272406,1737755439636,-644.32072769,0.00019782,2]
[350272407,1737755439648,-200.0,0.00019783,2]
[350272408,1737755439660,-200.0,0.00019786,2]
[350272409,1737755439673,-150.0,0.00019793,2]
[350272410,1737755439686,-1176.0,0.00019794,2]
[350272411,1737755439698,-3903.0,0.00019794,2]
[350272412,1737755439710,-150.0,0.00019794,2]
[350272413,1737755439722,-150.0,0.00019797,2]
[350272414,1737755439733,-3000.0,0.000198,2]
[350272415,1737755439747,-150.0,0.00019805,2]
[350272416,1737755439759,-6206.87295585,0.0001981,2]
[350272417,1737755439772,-1003.68,0.00019811,2]
[350272418,1737755439785,-500.0,0.00019811,2]
[350272419,1737755439796,-500.0,0.00019811,2]
[350272420,1737755439809,-500.0,0.00019811,2]
[350272421,1737755439821,-1143.72,0.00019811,2]
[350272422,1737755439832,-647.35,0.00019811,2]
[350272424,1737755439843,-720.8,0.00019811,2]
[350272425,1737755439854,-581.73,0.00019811,2]
[350272426,1737755439867,-500.0,0.00019811,2]
[350272427,1737755439882,-500.0,0.00019811,2]
[350272428,1737755439894,-1166.28,0.00019811,2]
[350272429,1737755439906,-500.0,0.00019811,2]
[350272430,1737755439918,-500.0,0.00019811,2]
[350272432,1737755439929,-500.0,0.00019811,2]
[350272433,1737755439941,-500.0,0.00019811,2]
[350272434,1737755439952,-1548.55,0.00019811,2]
[350272435,1737755439965,-500.0,0.00019811,2]
[350272436,1737755439978,-500.0,0.00019811,2]
[350272437,1737755439993,-500.0,0.00019811,2]
[350272438,1737755440005,-500.0,0.00019811,2]
[350272439,1737755440016,-500.0,0.00019811,2]
[350272440,1737755440026,-1880.78,0.00019811,2]
[350272441,1737755440037,-500.0,0.00019811,2]
[350272442,1737755440048,-500.0,0.00019812,2]
[350272443,1737755440060,-500.0,0.00019812,2]
[350272444,1737755440072,-500.0,0.00019812,2]
[350272445,1737755440086,-500.0,0.00019812,2]
[350272446,1737755440096,-500.0,0.00019812,2]
[350272447,1737755440107,-561.74,0.00019812,2]
[350272448,1737755440119,-500.0,0.00019812,2]
[350272449,1737755440129,-500.0,0.00019812,2]
[350272450,1737755440141,-500.0,0.00019812,2]
[350272451,1737755440151,-500.0,0.00019812,2]
[350272452,1737755440162,-500.0,0.00019812,2]
[350272453,1737755440173,-500.0,0.00019812,2]
[350272454,1737755440184,-914.13,0.00019812,2]
[350272455,1737755440195,-500.0,0.00019812,2]
[350272456,1737755440206,-484.759834,0.00019812,2]
[350272457,1737755440217,-680.97,0.00019812,2]
[350272458,1737755440229,-500.0,0.00019812,2]
[350272459,1737755440240,-500.0,0.00019812,2]
[350272460,1737755440252,-1244.67,0.00019812,2]
[350272461,1737755440263,-597.16,0.00019812,2]
[350272462,1737755440274,-500.0,0.00019812,2]
[350272463,1737755440286,-150.0,0.00019812,2]
[350272464,1737755440297,-550.74,0.00019812,2]
[350272465,1737755440308,-567.350589,0.00019812,2]
[350272466,1737755440322,-500.0,0.00019812,2]
[350272467,1737755440337,-266.53,0.00019812,2]
[350272468,1737755440348,-631.34,0.00019812,2]
[350272469,1737755440360,-500.0,0.00019812,2]
[350272470,1737755440371,-500.0,0.00019812,2]
[350272471,1737755440384,-500.0,0.00019812,2]
[350272472,1737755440396,-500.0,0.00019812,2]
[350272473,1737755440407,-500.0,0.00019812,2]
[350272474,1737755440417,-500.0,0.00019812,2]
[350272475,1737755440428,-500.0,0.00019812,2]
[350272476,1737755440439,-500.0,0.00019812,2]
[350272477,1737755440449,-500.0,0.00019812,2]
[350272478,1737755440460,-843.54,0.00019812,2]
[350272479,1737755440471,-1139.52,0.00019812,2]
[350272480,1737755440482,-500.0,0.00019812,2]
[350272481,1737755440492,-875.32,0.00019812,2]
[350272482,1737755440503,-1099.87,0.00019812,2]
[350272483,1737755440515,-500.0,0.00019812,2]
[350272484,1737755440526,-500.0,0.00019812,2]
[350272485,1737755440538,-706.81,0.00019812,2]
[350272486,1737755440550,-723.71,0.00019812,2]
[350272487,1737755440566,-527.13,0.00019812,2]
[350272488,1737755440578,-1339.65,0.00019812,2]
[350272489,1737755440589,-1746.49,0.00019812,2]
[350272490,1737755440600,-597.51,0.00019812,2]
[350272491,1737755440612,-500.0,0.00019812,2]
[350272492,1737755440623,-1842.37,0.00019812,2]
[350272493,1737755440633,-500.0,0.00019812,2]
[350272494,1737755440644,-546.41,0.00019812,2]
[350272495,1737755440656,-589.99,0.00019812,2]
[350272496,1737755440667,-500.0,0.00019812,2]
[350272497,1737755440678,-500.0,0.00019812,2]
[350272498,1737755440690,-1752.39,0.00019812,2]
[350272499,1737755440701,-444.3,0.00019812,2]
[350272500,1737755440712,-500.0,0.00019812,2]
[350272501,1737755440724,-500.0,0.00019812,2]
[350272502,1737755440736,-868.94,0.00019812,2]
[350272503,1737755440748,-984.18,0.00019812,2]
[350272504,1737755440759,-500.0,0.00019812,2]
[350272506,1737755440770,-500.0,0.00019812,2]
[350272508,1737755440791,-500.0,0.00019812,2]
[350272510,1737755440806,-500.0,0.00019812,2]
[350272513,1737755440819,-785.15,0.00019812,2]
[350272515,1737755440833,-692.15,0.00019812,2]
[350272517,1737755440845,-500.0,0.00019812,2]
[350272519,1737755440858,-1199.31,0.00019812,2]
[350272522,1737755440870,-150.0,0.00019813,2]
[350272524,1737755440883,-500.0,0.00019813,2]
[350272527,1737755440895,-644.32072769,0.00019815,2]
[350272529,1737755440908,-150.0,0.00019817,2]
[350272531,1737755440922,-644.32072769,0.00019821,2]
[350272533,1737755440934,-150.0,0.00019825,2]
[350272535,1737755440946,-200.0,0.00019826,2]
[350272537,1737755440959,-827.20064561,0.00019831,2]
[350272538,1737755440971,-644.32072769,0.00019833,2]
[350272539,1737755440983,-150.0,0.00019842,2]
[350272540,1737755440995,-150.0,0.00019845,2]
[350272541,1737755441007,-200.0,0.00019847,2]
[350272542,1737755441019,-2000.0,0.00019848,3]
[350272543,1737755441032,-741.32794093,0.00019848,2]
[350272544,1737755441044,-150.0,0.00019851,2]
[350272545,1737755441055,-150.0,0.00019852,2]
[350272546,1737755441067,-150.0,0.00019855,2]
[350272547,1737755441078,-200.0,0.00019861,2]
[350272548,1737755441091,-150.0,0.00019863,2]
[350272549,1737755441103,-166.5,0.00019866,2]
[350272550,1737755441115,-150.0,0.00019874,2]
[350272551,1737755441126,-150.0,0.00019876,2]
[350272552,1737755441138,-150.0,0.00019878,2]
[350272553,1737755441150,-644.32072769,0.0001988,2]
[350272554,1737755441162,-150.0,0.00019881,2]
[350272555,1737755441173,-150.0,0.00019883,2]
[350272556,1737755441185,-150.0,0.00019887,2]
[350272557,1737755441197,-150.0,0.00019889,2]
[350272558,1737755441408,-150.0,0.00019892,2]
[350272559,1737755441422,-150.0,0.00019894,2]
[350272560,1737755441432,-427.15934284,0.00019895,2]
[350272561,1737755441447,-150.0,0.00019899,2]
[350272562,1737755441457,-196.05944312,0.000199,2]
[350272563,1737755441467,-295.8646407,0.000199,2]
[350272564,1737755441478,-311.66239819,0.000199,2]
[350272565,1737755441491,-150.0,0.00019913,2]
[350272566,1737755441500,-269.14504868,0.00019923,2]
[350272567,1737755441510,-3233.82852565,0.00019926,2]
[350272568,1737755441520,-827.20064561,0.00019934,2]
[350272569,1737755441530,-151.0,0.00019935,2]
[350272570,1737755441540,-170.261442,0.00019935,2]
[350272571,1737755441550,-170.261442,0.00019935,2]
[350272572,1737755441560,-151.0,0.00019935,2]
[350272573,1737755441570,-151.0,0.00019935,2]
[350272574,1737755441580,-176.136365,0.00019935,2]
[350272575,1737755441590,-176.136365,0.00019935,2]
[350272576,1737755441599,-151.0,0.00019935,2]
[350272577,1737755441609,-151.0,0.00019935,2]
[350272578,1737755441619,-151.0,0.00019935,2]
[350272579,1737755441628,-150.0,0.00019939,2]
[350272580,1737755441637,-150.0,0.00019943,2]
[350272581,1737755441646,-286.04205691,0.00019946,2]
[350272582,1737755441655,-1003.68,0.00019948,2]
[350272583,1737755441665,-500.0,0.00019948,2]
[350272584,1737755441675,-500.0,0.00019948,2]
[350272585,1737755441684,-500.0,0.00019948,2]
[350272586,1737755441694,-1143.72,0.00019948,2]
[350272587,1737755441704,-647.35,0.00019948,2]
[350272588,1737755441713,-720.8,0.00019948,2]
[350272589,1737755441723,-581.73,0.00019948,2]
[350272590,1737755441733,-500.0,0.00019948,2]
[350272591,1737755441743,-500.0,0.00019948,2]
[350272592,1737755441754,-1166.28,0.00019948,2]
[350272593,1737755441764,-500.0,0.00019948,2]
[350272594,1737755441774,-151.0,0.00019948,2]
[350272595,1737755441784,-500.0,0.00019948,2]
[350272596,1737755441793,-151.0,0.00019948,2]
[350272597,1737755441803,-151.0,0.00019948,2]
[350272598,1737755441812,-500.0,0.00019948,2]
[350272599,1737755441822,-151.0,0.00019948,2]
[350272600,1737755441831,-500.0,0.00019948,2]
[350272601,1737755441841,-797.838864,0.00019948,2]
[350272602,1737755441851,-797.838864,0.00019948,2]
[350272603,1737755441860,-1548.55,0.00019948,2]
[350272604,1737755441869,-151.0,0.00019948,2]
[350272605,1737755441879,-500.0,0.00019948,2]
[350272606,1737755441888,-500.0,0.00019948,2]
[350272607,1737755441898,-619.90093699,0.00019948,2]
[350272608,1737755441908,-500.0,0.00019948,2]
[350272609,1737755441917,-500.0,0.00019948,2]
[350272610,1737755441927,-1880.78,0.00019948,2]
[350272611,1737755441937,-500.0,0.00019948,2]
[350272612,1737755441946,-500.0,0.00019949,2]
[350272613,1737755441956,-500.0,0.00019949,2]
[350272614,1737755441966,-603.58222488,0.00019949,2]
[350272615,1737755441975,-500.0,0.00019949,2]
[350272616,1737755441985,-500.0,0.00019949,2]
[350272617,1737755441995,-500.0,0.00019949,2]
[350272618,1737755442004,-151.0,0.00019949,2]
[350272619,1737755442014,-177.09892755,0.00019949,2]
[350272620,1737755442023,-151.0,0.00019949,2]
[350272621,1737755442032,-151.0,0.00019949,2]
[350272622,1737755442041,-500.0,0.00019949,2]
[350272623,1737755442050,-500.0,0.00019949,2]
[350272624,1737755442060,-500.0,0.00019949,2]
[350272625,1737755442069,-151.0,0.00019949,2]
[350272626,1737755442079,-500.0,0.00019949,2]
[350272627,1737755442088,-914.13,0.00019949,2]
[350272628,1737755442098,-484.759834,0.00019949,2]
[350272629,1737755442107,-151.0,0.00019949,2]
[350272630,1737755442116,-680.97,0.00019949,2]
[350272631,1737755442126,-500.0,0.00019949,2]
[350272632,1737755442135,-500.0,0.00019949,2]
[350272633,1737755442144,-1244.67,0.00019949,2]
[350272634,1737755442154,-597.16,0.00019949,2]
[350272635,1737755442163,-500.0,0.00019949,2]
[350272636,1737755442172,-550.74,0.00019949,2]
[350272637,1737755442181,-567.350589,0.00019949,2]
[350272638,1737755442191,-500.0,0.00019949,2]
[350272639,1737755442200,-500.0,0.00019949,2]
[350272640,1737755442210,-500.0,0.00019949,2]
[350272641,1737755442219,-500.0,0.00019949,2]
[350272642,1737755442229,-500.0,0.00019949,2]
[350272643,1737755442239,-500.0,0.00019949,2]
[350272644,1737755442248,-500.0,0.00019949,2]
[350272645,1737755442257,-500.0,0.00019949,2]
[350272646,1737755442267,-500.0,0.00019949,2]
[350272647,1737755442276,-843.54,0.00019949,2]
[350272648,1737755442286,-1139.52,0.00019949,2]
[350272649,1737755442295,-500.0,0.00019949,2]
[350272650,1737755442304,-875.32,0.00019949,2]
[350272651,1737755442313,-1099.87,0.00019949,2]
[350272652,1737755442322,-500.0,0.00019949,2]
[350272653,1737755442333,-706.81,0.00019949,2]
[350272654,1737755442342,-723.71,0.00019949,2]
[350272655,1737755442351,-527.13,0.00019949,2]
[350272656,1737755442361,-151.0,0.00019949,2]
[350272657,1737755442371,-1339.65,0.00019949,2]
[350272658,1737755442383,-272.040353,0.00019949,2]
[350272659,1737755442392,-1746.49,0.00019949,2]
[350272660,1737755442401,-597.51,0.00019949,2]
[350272661,1737755442412,-500.0,0.00019949,2]
[350272662,1737755442421,-1842.37,0.00019949,2]
[350272663,1737755442431,-500.0,0.00019949,2]
[350272664,1737755442440,-151.0,0.00019949,2]
[350272665,1737755442450,-151.0,0.00019949,2]
[350272666,1737755442460,-589.99,0.00019949,2]
[350272667,1737755442471,-500.0,0.00019949,2]
[350272668,1737755442481,-500.0,0.00019949,2]
[350272669,1737755442493,-1752.39,0.00019949,2]
[350272670,1737755442503,-500.0,0.00019949,2]
[350272671,1737755442512,-500.0,0.00019949,2]
[350272672,1737755442523,-868.94,0.00019949,2]
[350272673,1737755442533,-984.18,0.00019949,2]
[350272674,1737755442542,-500.0,0.00019949,2]
[350272675,1737755442551,-500.0,0.00019949,2]
[350272676,1737755442560,-500.0,0.00019949,2]
[350272677,1737755442569,-500.0,0.00019949,2]
[350272678,1737755442579,-785.15,0.00019949,2]
[350272679,1737755442589,-692.15,0.00019949,2]
[350272680,1737755442599,-500.0,0.00019949,2]
[350272681,1737755442609,-1199.31,0.00019949,2]
[350272682,1737755442619,-500.0,0.0001995,2]
[350272683,1737755442628,-150.0,0.00019951,2]
[350272684,1737755442638,-150.0,0.00019957,2]
[350272685,1737755442648,-6230.24056604,0.00019963,2]
[350272686,1737755442658,-150.0,0.00019964,2]
[350272687,1737755442667,-4679.0,0.00019973,2]
[350272688,1737755442677,-153.4853331,0.00019973,2]